[Event "Masters Tournament (MTO)"]
[Site "Biel, Switzerland"]
[Date "2026.07.21"]
[Round "8.37"]
[White "Lumsdon, Andrew"]
[Black "Ruchat, Blaise"]
[Result "0-1"]
[TimeControl "100+30+30sec/move"]
[WhiteTitle "-"]
[BlackTitle "-"]
[WhiteFideId "1308840"]
[BlackFideId "1328921"]
[WhiteElo "2033"]
[BlackElo "1912"]

1. e4 {[%clk 01:40:56]} {[%emt 00:00:06]} c5 {[%clk 01:40:51]} {[%emt
00:00:08]} 2. c3 {[%clk 01:41:20]} {[%emt 00:00:06]} d5 {[%clk 01:41:01]}
{[%emt 00:00:19]} 3. e5 {[%clk 01:41:39]} {[%emt 00:00:10]} Nc6 {[%clk
01:41:17]} {[%emt 00:00:15]} 4. f4 {[%clk 01:42:02]} {[%emt 00:00:06]} d4
{[%clk 01:38:50]} {[%emt 00:02:58]} 5. d3 {[%clk 01:41:53]} {[%emt 00:00:39]}
e6 {[%clk 00:59:06]} {[%emt 00:40:14]} 6. c4 {[%clk 01:39:01]} {[%emt
00:03:21]} Nge7 {[%clk 00:59:06]} {[%emt 00:00:31]} 7. Nd2 {[%clk 01:39:20]}
{[%emt 00:00:11]} Nf5 {[%clk 00:58:53]} {[%emt 00:00:43]} 8. Ne4 {[%clk
01:39:43]} {[%emt 00:00:06]} h5 {[%clk 00:58:21]} {[%emt 00:01:03]} 9. g3
{[%clk 01:36:18]} {[%emt 00:03:55]} Be7 {[%clk 00:48:15]} {[%emt 00:10:35]} 10.
Nf3 {[%clk 01:34:57]} {[%emt 00:01:50]} f6 {[%clk 00:46:08]} {[%emt 00:02:39]}
11. exf6 {[%clk 01:34:49]} {[%emt 00:00:38]} gxf6 {[%clk 00:46:26]} {[%emt
00:00:12]} 12. Nh4 {[%clk 01:34:27]} {[%emt 00:00:50]} Nxh4 {[%clk 00:36:02]}
{[%emt 00:10:56]} 13. gxh4 {[%clk 01:34:46]} {[%emt 00:00:11]} Bd7 {[%clk
00:35:48]} {[%emt 00:00:43]} 14. Be2 {[%clk 01:34:40]} {[%emt 00:00:36]} Qb6
{[%clk 00:35:12]} {[%emt 00:01:07]} 15. Bxh5+ {[%clk 01:34:38]} {[%emt
00:00:32]} Kd8 {[%clk 00:35:21]} {[%emt 00:00:21]} 16. Rg1 {[%clk 01:31:01]}
{[%emt 00:04:07]} Kc7 {[%clk 00:34:24]} {[%emt 00:01:27]} 17. Qe2 {[%clk
01:26:39]} {[%emt 00:04:51]} Nb4 {[%clk 00:27:34]} {[%emt 00:07:21]} 18. Rg7
{[%clk 01:21:33]} {[%emt 00:05:35]} Nc6 {[%clk 00:18:50]} {[%emt 00:09:15]} 19.
Bd2 {[%clk 01:17:45]} {[%emt 00:04:18]} Rhg8 {[%clk 00:17:35]} {[%emt
00:01:45]} 20. Rxg8 {[%clk 01:13:16]} {[%emt 00:04:59]} Rxg8 {[%clk 00:18:02]}
{[%emt 00:00:02]} 21. O-O-O {[%clk 01:12:10]} {[%emt 00:01:36]} Nb4 {[%clk
00:14:46]} {[%emt 00:03:47]} 22. Bxb4 {[%clk 01:03:20]} {[%emt 00:09:20]} Qxb4
{[%clk 00:14:26]} {[%emt 00:00:50]} 23. Ng3 {[%clk 00:59:24]} {[%emt 00:04:26]}
Bd6 {[%clk 00:10:37]} {[%emt 00:04:19]} 24. Rf1 {[%clk 00:59:14]} {[%emt
00:00:38]} f5 {[%clk 00:09:57]} {[%emt 00:01:11]} 25. a3 {[%clk 00:51:57]}
{[%emt 00:07:47]} Qa5 {[%clk 00:09:49]} {[%emt 00:00:38]} 26. Qf2 {[%clk
00:48:51]} {[%emt 00:03:35]} b5 {[%clk 00:09:07]} {[%emt 00:01:14]} 27. Bd1
{[%clk 00:40:32]} {[%emt 00:08:48]} b4 {[%clk 00:08:09]} {[%emt 00:01:29]} 28.
axb4 {[%clk 00:36:28]} {[%emt 00:04:34]} Qa1+ {[%clk 00:07:21]} {[%emt
00:01:19]} 29. Kd2 {[%clk 00:36:21]} {[%emt 00:00:36]} Qxb2+ {[%clk 00:07:24]}
{[%emt 00:00:27]} 30. Ke1 {[%clk 00:36:42]} {[%emt 00:00:08]} Qxb4+ {[%clk
00:05:39]} {[%emt 00:02:15]} 31. Qd2 {[%clk 00:36:32]} {[%emt 00:00:39]} Qa3
{[%clk 00:05:45]} {[%emt 00:00:25]} 32. h5 {[%clk 00:31:45]} {[%emt 00:05:17]}
Rb8 {[%clk 00:05:40]} {[%emt 00:00:35]} 33. Bc2 {[%clk 00:24:04]} {[%emt
00:08:11]} Rb2 {[%clk 00:05:31]} {[%emt 00:00:40]} 34. Qc1 {[%clk 00:14:31]}
{[%emt 00:10:02]} Qc3+ {[%clk 00:04:13]} {[%emt 00:01:49]} 35. Kd1 {[%clk
00:13:33]} {[%emt 00:01:28]} Ra2 {[%clk 00:01:57]} {[%emt 00:02:45]} 36. Ne2
{[%clk 00:12:33]} {[%emt 00:01:31]} Qa5 {[%clk 00:01:48]} {[%emt 00:00:39]} 37.
Qd2 {[%clk 00:11:55]} {[%emt 00:01:05]} Ra1+ {[%clk 00:01:24]} {[%emt
00:00:57]} 38. Nc1 {[%clk 00:12:08]} {[%emt 00:00:16]} Qb6 {[%clk 00:00:39]}
{[%emt 00:01:15]} 39. h6 {[%clk 00:11:36]} {[%emt 00:01:03]} Bf8 {[%clk
00:00:37]} {[%emt 00:00:31]} 40. h7 {[%clk 00:11:41]} {[%emt 00:00:25]} Bg7
{[%clk 00:00:48]} {[%emt 00:00:19]} 41. Rg1 {[%clk 00:11:55]} {[%emt 00:00:15]}
Bf6 {[%clk 00:13:34]} {[%emt 00:17:45]} 42. Ke2 {[%clk 00:31:24]} {[%emt
00:11:01]} Be8 {[%clk 00:09:50]} {[%emt 00:04:15]} 43. Kf2 {[%clk 00:30:52]}
{[%emt 00:01:00]} Bf7 {[%clk 00:06:10]} {[%emt 00:04:11]} 44. Rg2 {[%clk
00:17:39]} {[%emt 00:13:43]} Qb8 {[%clk 00:05:58]} {[%emt 00:00:42]} 45. Nb3
{[%clk 00:16:39]} {[%emt 00:01:29]} Bh4+ {[%clk 00:03:44]} {[%emt 00:02:46]} 46.
Rg3 {[%clk 00:16:29]} {[%emt 00:00:39]} Rh1 {[%clk 00:02:42]} {[%emt 00:01:31]}
47. Qa5+ {[%clk 00:15:28]} {[%emt 00:01:32]} Kd7 {[%clk 00:02:47]} {[%emt
00:00:25]} 48. Nxc5+ {[%clk 00:11:43]} {[%emt 00:04:15]} Ke7 {[%clk 00:02:41]}
{[%emt 00:00:37]} 49. Na6 {[%clk 00:11:02]} {[%emt 00:01:10]} Qxf4+ {[%clk
00:01:04]} {[%emt 00:02:08]} 50. Ke2 {[%clk 00:09:01]} {[%emt 00:02:30]} Qf1+
{[%clk 00:01:18]} {[%emt 00:00:15]} 0-1

[Event "Masters Tournament (MTO)"]
[Site "Biel, Switzerland"]
[Date "2026.07.21"]
[Round "8.38"]
[White "Di Candia, Roberto"]
[Black "Joly, Fabrice"]
[Result "0-1"]
[TimeControl "100+30+30sec/move"]
[WhiteTitle "-"]
[BlackTitle "-"]
[WhiteFideId "856649"]
[BlackFideId "612235"]
[WhiteElo "1988"]
[BlackElo "1907"]

1. c4 {[%clk 01:40:58]} {[%emt 00:00:02]} Nf6 {[%clk 01:40:42]} {[%emt
00:00:18]} 2. Nf3 {[%clk 01:41:17]} {[%emt 00:00:11]} c5 {[%clk 01:40:57]}
{[%emt 00:00:15]} 3. g3 {[%clk 01:41:32]} {[%emt 00:00:15]} g6 {[%clk
01:41:19]} {[%emt 00:00:07]} 4. Bg2 {[%clk 01:41:58]} {[%emt 00:00:05]} Bg7
{[%clk 01:41:33]} {[%emt 00:00:16]} 5. Nc3 {[%clk 01:41:54]} {[%emt 00:00:35]}
Nc6 {[%clk 01:41:53]} {[%emt 00:00:09]} 6. O-O {[%clk 01:42:15]} {[%emt
00:00:09]} O-O {[%clk 01:42:18]} {[%emt 00:00:06]} 7. d4 {[%clk 01:42:41]}
{[%emt 00:00:04]} d6 {[%clk 01:42:42]} {[%emt 00:00:06]} 8. dxc5 {[%clk
01:41:07]} {[%emt 00:02:04]} dxc5 {[%clk 01:43:04]} {[%emt 00:00:07]} 9. Be3
{[%clk 01:41:34]} {[%emt 00:00:02]} Qa5 {[%clk 01:43:15]} {[%emt 00:00:20]} 10.
Qb3 {[%clk 01:42:00]} {[%emt 00:00:04]} Qb4 {[%clk 01:43:37]} {[%emt 00:00:08]}
11. Qxb4 {[%clk 01:41:41]} {[%emt 00:00:49]} cxb4 {[%clk 01:43:07]} {[%emt
00:01:00]} 12. Nd5 {[%clk 01:40:16]} {[%emt 00:01:55]} Bf5 {[%clk 01:38:45]}
{[%emt 00:04:52]} 13. Bc5 {[%clk 01:30:55]} {[%emt 00:09:51]} Ne4 {[%clk
01:29:13]} {[%emt 00:10:03]} 14. Nxe7+ {[%clk 01:24:59]} {[%emt 00:06:25]} Nxe7
{[%clk 01:27:38]} {[%emt 00:02:05]} 15. Bxe7 {[%clk 01:25:27]} {[%emt
00:00:02]} Rfc8 {[%clk 01:23:21]} {[%emt 00:04:47]} 16. Rad1 {[%clk 00:57:40]}
{[%emt 00:28:15]} Bxb2 {[%clk 01:03:23]} {[%emt 00:20:30]} 17. Nd4 {[%clk
00:57:44]} {[%emt 00:00:25]} Bxd4 {[%clk 00:42:24]} {[%emt 00:21:30]} 18. Rxd4
{[%clk 00:58:06]} {[%emt 00:00:08]} Nc3 {[%clk 00:42:37]} {[%emt 00:00:17]} 19.
Rh4 {[%clk 00:54:20]} {[%emt 00:04:16]} Nxe2+ {[%clk 00:36:06]} {[%emt
00:07:01]} 20. Kh1 {[%clk 00:54:45]} {[%emt 00:00:05]} Re8 {[%clk 00:36:12]}
{[%emt 00:00:24]} 21. Bxb4 {[%clk 00:54:38]} {[%emt 00:00:37]} g5 {[%clk
00:35:59]} {[%emt 00:00:42]} 22. Rh6 {[%clk 00:47:55]} {[%emt 00:07:12]} Bg6
{[%emt 00:04:41]} 23. f4 {[%clk 00:47:26]} gxf4 {[%clk 00:23:59]} {[%emt
00:09:19]} 24. gxf4 {[%clk 00:47:50]} {[%emt 00:00:06]} Be4 {[%clk 00:22:38]}
{[%emt 00:01:51]} 25. Rf2 {[%clk 00:41:31]} {[%emt 00:06:49]} Rad8 {[%clk
00:13:09]} {[%emt 00:09:59]} 26. Rd6 {[%clk 00:36:33]} {[%emt 00:05:27]} Nc3
{[%clk 00:03:34]} {[%emt 00:10:05]} 27. Rfd2 {[%clk 00:11:37]} {[%emt
00:25:26]} Rxd6 {[%clk 00:03:41]} {[%emt 00:00:24]} 28. Rxd6 {[%clk 00:09:33]}
{[%emt 00:02:33]} Bxg2+ {[%clk 00:03:32]} {[%emt 00:00:38]} 29. Kxg2 {[%clk
00:09:59]} {[%emt 00:00:04]} Nxa2 {[%clk 00:03:55]} {[%emt 00:00:08]} 30. Bc5
{[%clk 00:08:34]} {[%emt 00:01:55]} b6 {[%clk 00:03:39]} {[%emt 00:00:46]} 31.
Bd4 {[%clk 00:08:44]} {[%emt 00:00:19]} Nb4 {[%clk 00:03:44]} {[%emt 00:00:25]}
32. Be5 {[%clk 00:07:15]} {[%emt 00:01:59]} Rc8 {[%clk 00:03:26]} {[%emt
00:00:48]} 33. f5 {[%clk 00:06:16]} {[%emt 00:01:29]} Nc6 {[%clk 00:03:16]}
{[%emt 00:00:40]} 34. Bc3 {[%clk 00:05:49]} {[%emt 00:00:58]} Ne7 {[%clk
00:02:33]} {[%emt 00:01:13]} 35. f6 {[%clk 00:05:43]} {[%emt 00:00:36]} Nf5
{[%clk 00:02:21]} {[%emt 00:00:42]} 36. Rd7 {[%clk 00:05:32]} {[%emt 00:00:41]}
Ne3+ {[%clk 00:02:06]} {[%emt 00:00:44]} 37. Kf3 {[%clk 00:05:29]} {[%emt
00:00:33]} Nxc4 {[%clk 00:02:26]} {[%emt 00:00:11]} 38. Rxa7 {[%clk 00:05:44]}
{[%emt 00:00:14]} h6 {[%clk 00:02:41]} {[%emt 00:00:16]} 39. Bd4 {[%clk
00:05:41]} {[%emt 00:00:32]} b5 {[%clk 00:01:31]} {[%emt 00:01:42]} 40. Rb7
{[%clk 00:05:42]} {[%emt 00:00:26]} Rd8 {[%clk 00:01:23]} {[%emt 00:00:40]} 41.
Bc5 {[%clk 00:05:28]} {[%emt 00:00:43]} Rd5 {[%clk 00:13:00]} {[%emt 00:18:54]}
42. Rb8+ {[%clk 00:35:03]} {[%emt 00:00:55]} Kh7 {[%clk 00:13:10]} {[%emt
00:00:20]} 43. Be7 {[%clk 00:35:20]} {[%emt 00:00:13]} Kg6 {[%clk 00:12:37]}
{[%emt 00:01:03]} 44. Ke4 {[%clk 00:33:19]} {[%emt 00:02:30]} Re5+ {[%clk
00:11:01]} {[%emt 00:02:07]} 45. Kf4 {[%clk 00:33:29]} {[%emt 00:00:15]} Rf5+
{[%clk 00:09:57]} {[%emt 00:01:39]} 46. Ke4 {[%clk 00:33:47]} {[%emt 00:00:11]}
Re5+ {[%clk 00:09:47]} {[%emt 00:00:40]} 47. Kd4 {[%clk 00:31:39]} {[%emt
00:02:38]} Rh5 {[%clk 00:09:42]} {[%emt 00:00:35]} 48. Rg8+ {[%clk 00:26:35]}
{[%emt 00:05:34]} Kf5 {[%clk 00:09:58]} {[%emt 00:00:13]} 49. Rg2 {[%clk
00:27:00]} {[%emt 00:00:05]} Ke6 {[%clk 00:08:28]} {[%emt 00:02:01]} 50. Re2+
{[%clk 00:25:09]} {[%emt 00:02:20]} Re5 {[%clk 00:08:44]} {[%emt 00:00:15]} 51.
Rxe5+ {[%clk 00:19:41]} {[%emt 00:05:58]} Nxe5 {[%clk 00:09:07]} {[%emt
00:00:07]} 52. Kc5 {[%clk 00:19:50]} {[%emt 00:00:18]} Ng4 {[%clk 00:09:17]}
{[%emt 00:00:23]} 53. h3 {[%clk 00:19:44]} {[%emt 00:00:35]} Nxf6 {[%clk
00:09:40]} {[%emt 00:00:07]} 54. Bd8 {[%clk 00:19:43]} {[%emt 00:00:32]} Ne4+
{[%clk 00:08:04]} {[%emt 00:02:07]} 55. Kxb5 {[%emt 00:02:47]} Nf2 {[%clk
00:05:53]} 56. h4 {[%clk 00:20:29]} {[%emt 00:00:06]} Kf5 {[%clk 00:06:13]}
{[%emt 00:00:11]} 57. Kc4 {[%clk 00:20:17]} {[%emt 00:00:42]} Kg6 {[%clk
00:06:11]} {[%emt 00:00:32]} 58. Kd4 {[%clk 00:19:11]} {[%emt 00:01:35]} Kf5
{[%clk 00:04:48]} {[%emt 00:01:55]} 59. Ke3 {[%clk 00:18:54]} {[%emt 00:00:46]}
Ng4+ {[%clk 00:04:25]} {[%emt 00:00:52]} 60. Kf3 {[%clk 00:19:08]} {[%emt
00:00:16]} Ne5+ {[%clk 00:04:39]} {[%emt 00:00:17]} 61. Ke3 {[%clk 00:17:50]}
{[%emt 00:01:48]} h5 {[%clk 00:04:38]} {[%emt 00:00:31]} 0-1

[Event "Masters Tournament (MTO)"]
[Site "Biel, Switzerland"]
[Date "2026.07.21"]
[Round "8.39"]
[White "Scherler, Julius"]
[Black "Wenger, Arejou"]
[Result "1-0"]
[TimeControl "100+30+30sec/move"]
[WhiteTitle "-"]
[BlackTitle "-"]
[WhiteFideId "1337947"]
[BlackFideId "1336584"]
[WhiteElo "1941"]
[BlackElo "1873"]

1. e4 {[%clk 01:40:42]} {[%emt 00:00:17]} c5 {[%clk 01:40:55]} {[%emt
00:00:07]} 2. Nf3 {[%clk 01:40:56]} {[%emt 00:00:14]} e6 {[%clk 01:41:21]}
{[%emt 00:00:06]} 3. g3 {[%clk 01:41:02]} {[%emt 00:00:23]} d5 {[%clk
01:41:09]} {[%emt 00:00:43]} 4. exd5 {[%clk 01:41:19]} {[%emt 00:00:13]} exd5
{[%clk 01:41:26]} {[%emt 00:00:13]} 5. d4 {[%clk 01:41:31]} {[%emt 00:00:18]}
Nf6 {[%clk 01:39:32]} {[%emt 00:02:24]} 6. Bg2 {[%clk 01:41:50]} {[%emt
00:00:11]} Be7 {[%clk 01:32:01]} {[%emt 00:08:01]} 7. O-O {[%clk 01:42:09]}
{[%emt 00:00:11]} O-O {[%clk 01:32:21]} {[%emt 00:00:10]} 8. dxc5 {[%clk
01:42:26]} {[%emt 00:00:13]} Bxc5 {[%clk 01:31:05]} {[%emt 00:01:46]} 9. Nc3
{[%clk 01:42:25]} {[%emt 00:00:31]} Nc6 {[%clk 01:24:23]} {[%emt 00:07:11]} 10.
a3 {[%clk 01:41:58]} {[%emt 00:00:58]} d4 {[%clk 01:20:32]} {[%emt 00:04:22]}
11. Na4 {[%clk 01:39:00]} {[%emt 00:03:28]} Be7 {[%clk 01:20:40]} {[%emt
00:00:21]} 12. b4 {[%clk 01:36:11]} {[%emt 00:03:19]} Bf5 {[%clk 01:14:34]}
{[%emt 00:06:36]} 13. b5 {[%clk 01:32:50]} {[%emt 00:03:51]} Na5 {[%clk
01:11:30]} {[%emt 00:03:34]} 14. Nxd4 {[%clk 01:24:49]} {[%emt 00:08:31]} Be4
{[%clk 01:10:03]} {[%emt 00:01:57]} 15. Bxe4 {[%clk 00:45:16]} {[%emt
00:40:03]} Nxe4 {[%clk 01:09:58]} {[%emt 00:00:35]} 16. Nf5 {[%clk 00:38:57]}
{[%emt 00:06:48]} Bf6 {[%clk 01:06:48]} {[%emt 00:03:41]} 17. Bb2 {[%clk
00:30:11]} {[%emt 00:09:17]} Bxb2 {[%clk 01:02:34]} {[%emt 00:04:44]} 18. Qxd8
{[%clk 00:26:44]} {[%emt 00:03:57]} Rfxd8 {[%clk 01:02:15]} {[%emt 00:00:49]}
19. Nxb2 {[%clk 00:27:09]} {[%emt 00:00:05]} Rd2 {[%clk 01:00:21]} {[%emt
00:02:23]} 20. Ne3 {[%clk 00:26:31]} {[%emt 00:01:09]} Nc3 {[%clk 00:56:46]}
{[%emt 00:04:05]} 21. a4 {[%clk 00:22:28]} {[%emt 00:04:33]} Re8 {[%clk
00:36:50]} {[%emt 00:20:26]} 22. Rfe1 {[%clk 00:21:27]} {[%emt 00:01:31]} Re4
{[%clk 00:33:32]} {[%emt 00:03:49]} 23. Kf1 {[%clk 00:12:59]} {[%emt 00:08:58]}
f5 {[%clk 00:21:01]} {[%emt 00:13:01]} 24. Nd3 {[%clk 00:05:45]} {[%emt
00:07:43]} g6 {[%clk 00:16:22]} {[%emt 00:05:10]} 25. Ra3 {[%clk 00:05:19]}
{[%emt 00:00:55]} Rxe3 {[%clk 00:12:21]} {[%emt 00:04:31]} 26. Rxe3 {[%clk
00:03:12]} {[%emt 00:02:37]} Ne4 {[%clk 00:09:21]} {[%emt 00:03:31]} 27. Re2
{[%clk 00:02:12]} {[%emt 00:01:30]} Nc4 {[%clk 00:07:52]} {[%emt 00:01:59]} 28.
Ra1 {[%clk 00:02:04]} {[%emt 00:00:37]} Kf7 {[%clk 00:07:36]} {[%emt 00:00:47]}
29. f3 {[%clk 00:01:45]} {[%emt 00:00:49]} Ng5 {[%clk 00:04:08]} {[%emt
00:03:57]} 30. Ne5+ {[%clk 00:01:43]} {[%emt 00:00:32]} Nxe5 {[%clk 00:03:17]}
{[%emt 00:01:22]} 31. Rxd2 {[%clk 00:02:05]} {[%emt 00:00:08]} Ngxf3 {[%clk
00:03:36]} {[%emt 00:00:10]} 32. Re2 {[%clk 00:01:54]} {[%emt 00:00:40]} Kf6
{[%clk 00:02:44]} {[%emt 00:01:23]} 33. Rd1 {[%clk 00:01:55]} {[%emt 00:00:29]}
Kg5 {[%clk 00:02:18]} {[%emt 00:00:57]} 34. Kg2 {[%clk 00:01:50]} {[%emt
00:00:34]} f4 {[%clk 00:00:49]} {[%emt 00:01:59]} 35. Rd5 {[%clk 00:01:31]}
{[%emt 00:00:48]} Kf5 {[%clk 00:00:47]} {[%emt 00:00:32]} 36. gxf4 {[%clk
00:00:47]} {[%emt 00:01:15]} Kxf4 {[%clk 00:01:04]} {[%emt 00:00:13]} 37. Rd8
{[%clk 00:00:42]} {[%emt 00:00:36]} Nh4+ {[%clk 00:01:07]} {[%emt 00:00:26]} 38.
Kh3 {[%clk 00:00:48]} {[%emt 00:00:24]} g5 {[%clk 00:00:32]} {[%emt 00:01:05]}
39. Rf8+ {[%clk 00:00:59]} {[%emt 00:00:19]} Nf5 {[%clk 00:00:57]} {[%emt
00:00:05]} 40. Rf2+ {[%clk 00:01:06]} {[%emt 00:00:23]} 1-0

[Event "Masters Tournament (MTO)"]
[Site "Biel, Switzerland"]
[Date "2026.07.21"]
[Round "8.40"]
[White "Fattori Dittmar, Luca"]
[Black "Petry, Martin"]
[Result "1/2-1/2"]
[TimeControl "100+30+30sec/move"]
[WhiteTitle "-"]
[BlackTitle "-"]
[WhiteFideId "34678883"]
[BlackFideId "1352318"]
[WhiteElo "1840"]
[BlackElo "1999"]

1. e4 {[%clk 01:40:58]} {[%emt 00:00:02]} g6 {[%clk 01:40:43]} {[%emt
00:00:19]} 2. d4 {[%clk 01:41:17]} {[%emt 00:00:08]} Bg7 {[%clk 01:41:02]}
{[%emt 00:00:11]} 3. Nf3 {[%clk 01:40:54]} {[%emt 00:00:53]} d6 {[%clk
01:41:18]} {[%emt 00:00:14]} 4. Bc4 {[%clk 01:41:12]} {[%emt 00:00:12]} Nf6
{[%clk 01:39:43]} {[%emt 00:02:05]} 5. Qe2 {[%clk 01:41:18]} {[%emt 00:00:25]}
O-O {[%clk 01:39:24]} {[%emt 00:00:49]} 6. e5 {[%clk 01:40:40]} {[%emt
00:01:08]} dxe5 {[%clk 01:38:33]} {[%emt 00:01:21]} 7. dxe5 {[%clk 01:41:05]}
{[%emt 00:00:05]} Nd5 {[%clk 01:38:36]} {[%emt 00:00:27]} 8. O-O {[%clk
01:41:13]} {[%emt 00:00:20]} Bg4 {[%clk 01:35:46]} {[%emt 00:03:22]} 9. Nbd2
{[%clk 01:39:59]} {[%emt 00:01:44]} e6 {[%clk 01:28:48]} {[%emt 00:07:28]} 10.
h3 {[%clk 01:34:39]} {[%emt 00:05:50]} Bxf3 {[%clk 01:28:59]} {[%emt 00:00:19]}
11. Nxf3 {[%clk 01:34:54]} {[%emt 00:00:15]} c6 {[%clk 01:29:02]} {[%emt
00:00:27]} 12. Re1 {[%clk 01:27:51]} {[%emt 00:07:33]} h6 {[%clk 01:22:24]}
{[%emt 00:07:08]} 13. Qe4 {[%clk 01:27:16]} {[%emt 00:01:04]} Nd7 {[%clk
01:17:44]} {[%emt 00:05:11]} 14. Bf1 {[%clk 01:26:33]} {[%emt 00:01:12]} Qc7
{[%clk 01:12:44]} {[%emt 00:05:30]} 15. c4 {[%clk 01:24:32]} {[%emt 00:02:31]}
Ne7 {[%clk 01:12:07]} {[%emt 00:01:07]} 16. b3 {[%clk 01:23:46]} {[%emt
00:01:17]} c5 {[%clk 01:08:45]} {[%emt 00:03:53]} 17. Bb2 {[%clk 01:22:55]}
{[%emt 00:01:21]} Nc6 {[%clk 01:05:58]} {[%emt 00:03:16]} 18. h4 {[%clk
01:20:51]} {[%emt 00:02:33]} h5 {[%clk 01:04:44]} {[%emt 00:01:44]} 19. g3
{[%clk 01:19:05]} {[%emt 00:02:16]} 1/2-1/2

[Event "Masters Tournament (MTO)"]
[Site "Biel, Switzerland"]
[Date "2026.07.21"]
[Round "8.41"]
[White "Malli, Shiivesh Sunil"]
[Black "Magnussen, Petur Gardar"]
[Result "1/2-1/2"]
[TimeControl "100+30+30sec/move"]
[WhiteTitle "-"]
[BlackTitle "-"]
[WhiteFideId "1340409"]
[BlackFideId "7203802"]
[WhiteElo "1994"]
[BlackElo "1957"]

1. c4 {[%clk 01:40:56]} {[%emt 00:00:04]} e5 {[%clk 01:40:55]} {[%emt
00:00:05]} 2. Nc3 {[%clk 01:41:19]} {[%emt 00:00:07]} Nf6 {[%clk 01:41:19]}
{[%emt 00:00:07]} 3. g3 {[%clk 01:41:44]} {[%emt 00:00:07]} Nc6 {[%clk
01:41:35]} {[%emt 00:00:12]} 4. Bg2 {[%clk 01:42:05]} {[%emt 00:00:09]} Bc5
{[%clk 01:41:48]} {[%emt 00:00:17]} 5. d3 {[%clk 01:42:14]} {[%emt 00:00:20]}
d6 {[%clk 01:42:00]} {[%emt 00:00:18]} 6. h3 {[%clk 01:41:47]} {[%emt
00:00:58]} O-O {[%clk 01:42:03]} {[%emt 00:00:26]} 7. e4 {[%clk 01:41:55]}
{[%emt 00:00:22]} a6 {[%clk 01:42:02]} {[%emt 00:00:32]} 8. a3 {[%clk
01:42:06]} {[%emt 00:00:19]} Be6 {[%clk 01:40:04]} {[%emt 00:02:28]} 9. Nge2
{[%clk 01:42:17]} {[%emt 00:00:18]} Qd7 {[%clk 01:35:30]} {[%emt 00:05:04]} 10.
b4 {[%clk 01:38:48]} {[%emt 00:04:00]} Ba7 {[%clk 01:29:25]} {[%emt 00:06:35]}
11. Nd5 {[%clk 01:35:37]} {[%emt 00:03:41]} Ne8 {[%clk 01:20:55]} {[%emt
00:08:59]} 12. Be3 {[%clk 01:30:58]} {[%emt 00:05:08]} f5 {[%clk 01:09:31]}
{[%emt 00:11:55]} 13. Bxa7 {[%clk 01:30:00]} {[%emt 00:01:29]} Rxa7 {[%clk
01:09:28]} {[%emt 00:00:33]} 14. exf5 {[%clk 01:17:56]} {[%emt 00:12:32]} Bxf5
{[%clk 01:08:49]} {[%emt 00:01:10]} 15. Ne3 {[%clk 01:12:28]} {[%emt 00:05:57]}
Bg6 {[%clk 00:59:03]} {[%emt 00:10:17]} 16. O-O {[%clk 00:58:08]} {[%emt
00:14:50]} Nf6 {[%clk 00:42:08]} {[%emt 00:17:25]} 17. d4 {[%clk 00:51:15]}
{[%emt 00:07:23]} e4 {[%clk 00:33:21]} {[%emt 00:09:18]} 18. Nf4 {[%clk
00:43:03]} {[%emt 00:08:41]} Bf7 {[%clk 00:32:46]} {[%emt 00:01:05]} 19. h4
{[%clk 00:41:35]} {[%emt 00:01:57]} Raa8 {[%clk 00:25:18]} {[%emt 00:07:59]} 20.
Bh3 {[%clk 00:39:40]} {[%emt 00:02:24]} Qe8 {[%clk 00:23:34]} {[%emt 00:02:15]}
21. Qd2 {[%clk 00:16:57]} {[%emt 00:23:12]} Rd8 {[%clk 00:19:23]} {[%emt
00:04:41]} 22. Ned5 {[%clk 00:13:46]} {[%emt 00:03:42]} Nxd5 {[%clk 00:18:33]}
{[%emt 00:01:20]} 23. cxd5 {[%clk 00:14:01]} {[%emt 00:00:15]} Ne7 {[%clk
00:18:16]} {[%emt 00:00:47]} 24. Ne6 {[%clk 00:11:50]} {[%emt 00:02:41]} Bxe6
{[%clk 00:14:23]} {[%emt 00:04:24]} 25. Bxe6+ {[%clk 00:12:06]} {[%emt
00:00:14]} Kh8 {[%clk 00:14:52]} 26. Qc2 {[%clk 00:11:03]} {[%emt 00:01:32]}
Qg6 {[%clk 00:09:31]} {[%emt 00:05:51]} 27. Qxc7 {[%clk 00:07:18]} {[%emt
00:04:15]} Nf5 {[%clk 00:07:14]} {[%emt 00:02:48]} 28. Bxf5 {[%clk 00:07:15]}
{[%emt 00:00:33]} Qxf5 {[%clk 00:07:41]} {[%emt 00:00:02]} 29. Qxb7 {[%clk
00:05:07]} {[%emt 00:02:38]} e3 {[%clk 00:07:15]} {[%emt 00:00:56]} 30. fxe3
{[%clk 00:00:40]} {[%emt 00:04:57]} Qh3 {[%clk 00:07:03]} {[%emt 00:00:42]} 31.
Qe7 {[%clk 00:00:38]} {[%emt 00:00:32]} Qxg3+ {[%clk 00:06:59]} {[%emt
00:00:34]} 32. Kh1 {[%clk 00:01:03]} {[%emt 00:00:04]} Qh3+ {[%clk 00:07:22]}
{[%emt 00:00:08]} 1/2-1/2